Workbook

Sheet Лист1
A1: Школа | C1: МБОУ "Иске Рязяпская СОШ" | F1: Утвердил: | G1: должность | H1: Директор
A2: Типовое примерное меню приготавливаемых блюд | G2: фамилия | H2: Файзиев
A3: Возрастная категория | E3: 7-11 лет | G3: дата | H3: 11 | I3: 4 | J3: 2025
H4: день | I4: месяц | J4: год
A5: Неделя | B5: День недели | C5: Прием пищи | D5: Раздел меню | E5: Блюда | F5: Вес блюда, г | G5: Белки | H5: Жиры | I5: Углеводы | J5: Калорийность | K5: № рецептуры | L5: Цена
A6: 1 | B6: 1 | C6: Завтрак | E6: Салат из припущенной моркови с яблоками | F6: 60 | G6: 0, 594 | H6: 1, 1 | I6: 6, 19 | J6: 37, 036 | K6: № 59
D7: гор.блюдо | E7: Макароны отварые со сливочным маслом | F7: 150 | G7: 5.47 | H7: 6.37 | I7: 34.34 | J7: 216, 57 | K7: №203
D8: гор.блюдо | E8: Котлета из птицы с соусом | F8: 100 | G8: 9.9 | H8: 12, 11 | I8: 6.58 | J8: 174, 91 | K8: №294
D9: гор.напиток | E9: Чай с сахаром | F9: 200 | G9: 0.2 | H9: 0.05 | I9: 10 | J9: 41, 3 | K9: №376
D10: хлеб | E10: Хлеб пшеничный | F10: 30 | G10: 2.6 | H10: 0.81 | I10: 14.4 | J10: 74.73
D11: хлеб | E11: Хлеб ржан-пшеничный | F11: 20 | G11: 1.32 | H11: 0.22 | I11: 8.2 | J11: 40.06
D15: итого | F15: 560 | G15: 20, 084 | H15: 20.66 | I15: 79, 71 | J15: 584, 606
A16: =A7 -> 0 | B16: =B7 -> 0 | C16: Итого за день: | F16: 560 | G16: 20, 084 | H16: 20, 66 | I16: 79, 71 | J16: 584, 606
A17: 1 | B17: 2 | C17: Завтрак | D17: салат | E17: Огурцы свежие порционно с маслом | F17: 60 | G17: 1, 16 | H17: 6, 05 | I17: 5.8 | J17: 82, 29 | K17: №45/71
D18: гор.блюдо | E18: жаркое по-домашнему( из говядины) | F18: 200 | G18: 14, 23 | H18: 13 | I18: 46, 9 | J18: 361, 52 | K18: №259
D19: гор.напиток | E19: Чай с сахаром и лимоном | F19: 200 | G19: 0.04 | H19: 0.005 | I19: 10.1 | J19: 40.7 | K19: №377
D20: хлеб | E20: Хлеб пшеничный | F20: 30 | G20: 2.6 | H20: 0, 81 | I20: 14.4 | J20: 74, 73
D21: хлеб | E21: Хлеб ржан-пшеничный | F21: 20 | G21: 1.32 | H21: 0.22 | I21: 8.2 | J21: 40.06
D25: итого | F25: 510 | G25: 19.35 | H25: 20.085 | I25: 85.84 | J25: 599, 3
A26: =A17 -> 1 | B26: =B17 -> 2 | C26: Итого за день: | F26: 510 | G26: 19.35 | H26: 20.085 | I26: 85, 84 | J26: 599, 3
A27: 1 | B27: 3 | C27: Завтрак | D27: гор.блюдо | E27: Каша гречневая рассыпчатая | F27: 150 | G27: 6.9 | H27: 7.6 | I27: 33, 6 | J27: 230, 3 | K27: №302
D28: гор.блюдо | E28: птица, тушенная в сметанном соусе | F28: 100 | G28: 7.1 | H28: 5, 6 | I28: 3.17 | J28: 91, 48 | K28: №290
D29: гор.напиток | E29: Чай с сахаром и яблоками | F29: 200 | G29: 0.24 | H29: 0.09 | I29: 11 | J29: 45.77 | K29: №377
D30: хлеб | E30: Хлеб пшеничный | F30: 40 | G30: 3.28 | H30: 1.08 | I30: 19, 2 | J30: 99, 64
D31: хлеб | E31: Хлеб ржан-пшеничный | F31: 20 | G31: 1.32 | H31: 0.22 | I31: 8.2 | J31: 40.06
D32: салат | E32: Винегрет овощной | F32: 60 | G32: 0.86 | H32: 6.1 | I32: 5, 84 | J32: 81, 1 | K32: №67
D35: итого | F35: 570 | G35: =SUM(G27:G34) -> 19.7 | H35: =SUM(H27:H34) -> 15.09 | I35: =SUM(I27:I34) -> 22.37 | J35: =SUM(J27:J34) -> 85.83
A36: =A27 -> 1 | B36: =B27 -> 3 | C36: Итого за день: | F36: 570 | G36: 19.7 | H36: 20.69 | I36: 81.01 | J36: 589, 05
A37: 1 | B37: 4 | C37: Завтрак | D37: гор.блюдо | E37: Каша молочная геркулесовая со сливочным маслом | F37: 215 | G37: 7.3 | H37: 10.39 | I37: 26.7 | J37: 229.51 | K37: №173
D38: выпечка | E38: Сосиска в тесте | F38: 90 | G38: 7.1 | H38: 6.8 | I38: 25.6 | J38: 192 | K38: №420
D39: гор.напиток | E39: Чай с сахаром | F39: 200 | G39: 0.02 | H39: 0.005 | I39: 10 | J39: 41, 3 | K39: №376
D40: хлеб | E40: Хлеб пшеничный | F40: 30 | G40: 2.6 | H40: 0, 81 | I40: 14, 4 | J40: 74, 73
D41: фрукт | E41: фрукт | F41: 100 | G41: 1, 1 | H41: 0, 76 | I41: 9, 8 | J41: 50, 44 | K41: №338
D45: итого | F45: 635 | G45: 18, 3 | H45: 18, 81 | I45: 86, 5 | J45: 587, 98
A46: =A37 -> 1 | B46: =B37 -> 4 | C46: Итого за день: | F46: 635 | G46: 18, 3 | H46: 18, 81 | I46: 86, 5 | J46: 587, 98
A47: 1 | B47: 5 | C47: Завтрак | D47: фрукт | E47: фрукт | F47: 100 | G47: 1.1 | H47: 0.76 | I47: 9.8 | J47: 50.44 | K47: №338
D48: гор.блюдо | E48: рис отварной | F48: 150 | G48: 3.7 | H48: 6.3 | I48: 37.2 | J48: 220.6 | K48: №304
D49: гор.напиток | E49: Чай с сахаром и лимоном | F49: 200 | G49: 0.04 | H49: 0.005 | I49: 10.1 | J49: 40.7 | K49: №377
D50: хлеб | E50: Хлеб пшеничный | F50: 30 | G50: 2.5 | H50: 0.81 | I50: 9.4 | J50: 54.89
D51: хлеб | E51: Хлеб ржан-пшеничный | F51: 30 | G51: 1.32 | H51: 0.22 | I51: 8.2 | J51: 40.06
D52: гор.блюдо | E52: котлета из говядины с соусом | F52: 100 | G52: 10.1 | H52: 12.6 | I52: 11.8 | J52: 201 | K52: №268
D55: итого | F55: 600 | G55: 18, 76 | H55: =SUM(H47:H54) -> 20.695 | I55: =SUM(I47:I54) -> 86.5 | J55: =SUM(J47:J54) -> 607.69 | L55: 0
A56: =A47 -> 1 | B56: =B47 -> 5 | C56: Итого за день: | F56: 600 | G56: 18.76 | H56: 20.695 | I56: 86.5 | J56: 607.69
A57: 1 | B57: 6 | C57: Завтрак | D57: гор.блюдо | E57: Картофельное пюре | F57: 150 | G57: 3.8 | H57: 6.5 | I57: 34.8 | J57: 212.9 | K57: №312
D58: гор.блюдо | E58: рыба,запеченная в сметанном соусе | F58: 120 | G58: 11.8 | H58: 7.03 | I58: 10.9 | J58: 154.07 | K58: №232
D59: гор.напиток | E59: Чай с сахаром и яблоками | F59: 200 | G59: 0.24 | H59: 0.09 | I59: 11 | J59: 45.77 | K59: №377
D60: хлеб | E60: Хлеб пшеничный | F60: 20 | G60: 1.64 | H60: 0.54 | I60: 9.6 | J60: 49.82
D61: хлеб | E61: Хлеб ржан-пшеничный | F61: 20 | G61: 1.32 | H61: 0.22 | I61: 8.2 | J61: 40.06
D62: кон.изд | E62: кондитерское изделие | F62: 40 | G62: 1.4 | H62: 6.04 | I62: 13.3 | J62: 113.16 | K62: №452
D65: итого | F65: 540 | G65: =SUM(G57:G64) -> 20.2 | H65: 20.42 | I65: 87.8 | J65: 615.78
A66: =A57 -> 1 | B66: 6 | C66: Итого за день: | F66: 540 | G66: 20.2 | H66: 20.42 | I66: 87.8 | J66: 615.78
A67: 2 | B67: 1 | C67: Завтрак | D67: гор.блюдо | E67: Каша молочная "Дружба" со сливочным маслом | F67: 215 | G67: 7.8 | H67: 8.6 | I67: 37.9 | J67: 260.2 | K67: №173
E68: Пирожок с повидлом | F68: 60 | G68: 5.2 | H68: 7.9 | I68: 20.31 | J68: 173.14 | K68: №418
D69: гор.напиток | E69: Чай с сахаром | F69: 200 | G69: 0.2 | H69: 0.05 | I69: 10 | J69: 41.3 | K69: №376
D70: хлеб | E70: Хлеб пшеничный | F70: 20 | G70: 1.64 | H70: 0.54 | I70: 9.6 | J70: 49.82
E71: Хлеб ржан-пшеничный | F71: 20 | G71: 1.32 | H71: 0.22 | I71: 8.2 | J71: 40.06
D72: сыр | E72: Сыр | F72: 15 | G72: 4 | H72: 2.52 | J72: 38.68 | K72: №15
D75: итого | F75: 530 | G75: =SUM(G67:G74) -> 20.16 | H75: 19.83 | I75: 86.01 | J75: 603.2
A76: =A67 -> 2 | B76: 1 | C76: Итого за день: | F76: 530 | G76: 20.16 | H76: 19.83 | I76: 86.01 | J76: 603.2
A77: 2 | B77: 2 | C77: Завтрак | D77: гор.блюдо | E77: Сложный гарнир (картофельное пюре, тушеная капуста) | F77: 150 | G77: 4.02 | H77: 7.9 | I77: 20 | J77: 167.18 | K77: №312\321
E78: Кнели куриные с соусом | F78: 100 | G78: 11.5 | H78: 9.6 | I78: 25 | J78: 232.4 | K78: №301
D79: гор.напиток | E79: Чай с сахаром и лимоном | F79: 200 | G79: 0.04 | H79: 0.005 | I79: 10.1 | J79: 40.7 | K79: №377
D80: хлеб | E80: Хлеб пшеничный | F80: 30 | G80: 2.6 | H80: 0.81 | I80: 14.4 | J80: 74.73
E81: Хлеб ржан-пшеничный | F81: 20 | G81: 1.32 | H81: 0.22 | I81: 8.2 | J81: 40.06
D82: фрукты | E82: Фрукт | F82: 100 | G82: 0.4 | H82: 0.4 | I82: 9.8 | J82: 47 | K82: №338
D85: итого | F85: 600 | G85: =SUM(G77:G84) -> 19.88 | H85: 18.935 | I85: 87.5 | J85: 602.07
A86: =A77 -> 2 | B86: 2 | C86: Итого за день: | F86: 600 | G86: 19.88 | H86: 18.935 | I86: 87.5 | J86: 602.07
A87: 2 | B87: 3 | C87: Завтрак | D87: гор.блюдо | E87: Плов из говядины | F87: 200 | G87: 14.6 | H87: 13.5 | I87: 40.2 | J87: 340.7 | K87: №265
D89: гор.напиток | E89: Чай с сахаром и яблоками | F89: 200 | G89: 0.24 | H89: 0.09 | I89: 11 | J89: 45.77 | K89: №377
D90: хлеб | E90: Хлеб пшеничный | F90: 30 | G90: 2.6 | H90: 0.81 | I90: 14.4 | J90: 74.73
E91: Хлеб ржан-пшеничный | F91: 20 | G91: 1.32 | H91: 0.22 | I91: 8.2 | J91: 40.06
D92: салат | E92: Огурцы свежие порционно с маслом | F92: 60 | G92: 1.16 | H92: 6.05 | I92: 5.8 | J92: 82.29 | K92: №45\71
D95: итого | F95: 510 | G95: =SUM(G87:G94) -> 19.92 | H95: 20.67 | I95: 79.6 | J95: 583.55
A96: =A87 -> 2 | B96: =B87 -> 3 | C96: Итого за день: | F96: 510 | G96: 19.92 | H96: 20.67 | I96: 79.6 | J96: 583.55
A97: 2 | B97: 4 | C97: Завтрак | D97: гор.блюдо | E97: Каша гречневая рассыпчатая | F97: 150 | G97: 6.9 | H97: 7.6 | I97: 33.6 | J97: 230.3 | K97: №302
E98: Куриная грудка тушеная в сметанном соусе | F98: 100 | G98: 7.1 | H98: 5.6 | I98: 3.17 | J98: 91.48 | K98: №290
D99: гор.напиток | E99: Чай с сахаром | F99: 200 | G99: 0.2 | H99: 0.05 | I99: 10 | J99: 41.3 | K99: №376
D100: хлеб | E100: Хлеб пшеничный | F100: 40 | G100: 3.28 | H100: 1.08 | I100: 19.2 | J100: 99.64
E101: Хлеб ржан-пшеничный | F101: 20 | G101: 1.32 | H101: 0.22 | I101: 8.2 | J101: 40.06
D102: салат | E102: Салат из припущенной моркови | F102: 60 | G102: 0.74 | H102: 6.05 | I102: 5.1 | J102: 77.8 | K102: №62
D105: итого | F105: 570 | G105: =SUM(G97:G104) -> 19.54 | H105: 20.6 | I105: 79.27 | J105: 580.58
A106: =A97 -> 2 | B106: =B97 -> 4 | C106: Итого за день: | F106: 570 | G106: 19.54 | H106: 20.6 | I106: 79.67 | J106: 580.58
A107: 2 | B107: 5 | C107: Завтрак | D107: гор.блюдо | E107: Макароны отварные со сливочным маслом | F107: 150 | G107: 5.47 | H107: 6.37 | I107: 34.34 | J107: 216.57 | K107: №203
E108: Сосиска отварная с соусом | F108: 120 | G108: 11.2 | H108: 13 | I108: 11 | J108: 205.8 | K108: №243
D109: гор.напиток | E109: Чай с сахаром и лимоном | F109: 200 | G109: 0.04 | H109: 0.005 | I109: 10.1 | J109: 40.7 | K109: №376
D110: хлеб | E110: Хлеб пшеничный | F110: 20 | G110: 1.64 | H110: 0.54 | I110: 9.6 | J110: 49.82
E111: Хлеб ржан-пшеничный | F111: 20 | G111: 1.32 | H111: 0.22 | I111: 8.2 | J111: 40.06
D112: фрукт | E112: фрукт | F112: 100 | G112: 0.4 | H112: 0.4 | I112: 9.8 | J112: 47 | K112: №338
D115: итого | F115: 610 | G115: =SUM(G107:G114) -> 20.07 | H115: 20.535 | I115: 83.04 | J115: 599.95
A116: =A107 -> 2 | B116: =B107 -> 5 | C116: Итого за день: | F116: 610 | G116: 20.07 | H116: 20.535 | I116: 83.04 | J116: 599.95
A117: 2 | B117: 6 | C117: Завтрак | D117: салат | E117: Винегрет овощной | F117: 60 | G117: 0.86 | H117: 6.1 | I117: 5.84 | J117: 81.8 | K117: №67
D118: гор.блюдо | E118: Жаркое по-домашнему | F118: 200 | G118: 14.23 | H118: 13 | I118: 46.9 | J118: 361.52 | K118: №259
D119: гор.напиток | E119: Чай с сахаром и яблоками | F119: 200 | G119: 0.24 | H119: 0.09 | I119: 11 | J119: 45.77 | K119: №377
D120: хлеб | E120: Хлеб пшеничный | F120: 20 | G120: 1.64 | H120: 0.54 | I120: 9.6 | J120: 49.82
E121: Хлеб ржан-пшеничный | F121: 20 | G121: 1.32 | H121: 0.22 | I121: 8.2 | J121: 40.06
D125: итого | F125: 500 | G125: =SUM(G117:G124) -> 18.29 | H125: 19.95 | I125: 81.54 | J125: 578.97
A126: =A117 -> 2 | B126: =B117 -> 6 | C126: Итого за день: | F126: 500 | G126: 18.29 | H126: 19.95 | I126: 81.54 | J126: 578.97
